bitfinex/quotes_BTCUSD_20251110
["timestamp","ask_amount","ask_price","bid_price","bid_amount"]
[1762790460439,0.19033117,105080.0,105070.0,0.323048]
[1762790460604,0.20675117,105080.0,105070.0,4.8e-05]
[1762790460989,0.19033117,105080.0,105070.0,0.19039729]
[1762790461250,0.19033117,105080.0,105070.0,4.8e-05]
[1762790461412,0.19033117,105080.0,105070.0,0.19139729]
[1762790461624,0.19033117,105080.0,105070.0,0.19239729]
[1762790462153,0.19033117,105080.0,105070.0,0.002048]
[1762790462292,0.23096117,105080.0,105070.0,0.002048]
[1762790462893,0.20675117,105080.0,105070.0,0.002048]
[1762790463294,0.23096117,105080.0,105070.0,0.001048]
[1762790463502,0.24860511,105080.0,105070.0,0.001048]
[1762790463699,0.24960511,105080.0,105070.0,0.001048]
[1762790464105,0.24961194,105080.0,105070.0,0.001048]
[1762790464315,0.20775117,105080.0,105070.0,0.001048]
[1762790464525,0.2496216,105080.0,105070.0,0.001048]
[1762790464723,0.29566012,105080.0,105070.0,4.8e-05]
[1762790464931,0.6748424,105080.0,105070.0,4.8e-05]
[1762790465134,0.24653157,105070.0,105060.0,0.00023724]
[1762790465350,0.296312,105070.0,105060.0,0.00023724]
[1762790465554,0.38398017,105070.0,105060.0,0.00023724]
[1762790465955,0.296312,105070.0,105060.0,0.00023724]
[1762790466189,0.23591972,105070.0,105060.0,0.00023724]
[1762790466405,0.20800972,105070.0,105060.0,0.00023724]
[1762790466628,0.19033117,105080.0,105060.0,0.19060464]
[1762790466846,0.20901435,105080.0,105070.0,0.19034929]
[1762790467060,0.002,105070.0,105060.0,0.19060464]
[1762790467302,0.19034929,105070.0,105060.0,0.19060464]
[1762790467513,0.19133117,105080.0,105060.0,0.19060464]
[1762790467723,0.20903213,105080.0,105060.0,0.19060464]
[1762790467947,0.20803213,105080.0,105060.0,0.19060464]
[1762790468175,0.01770096,105080.0,105070.0,0.29989057]
[1762790468398,0.23638291,105110.0,105090.0,0.19031306]
[1762790468622,0.22044191,105110.0,105100.0,0.01902949]
[1762790468839,0.20814313,105110.0,105100.0,0.19029495]
[1762790469331,0.01786506,105110.0,105100.0,0.19029495]
[1762790469550,0.20814191,105110.0,105100.0,0.19029495]
[1762790470372,0.20814191,105110.0,105080.0,0.52283149]
[1762790470373,0.19029495,105100.0,105080.0,0.52283149]
[1762790470572,0.20802105,105100.0,105080.0,0.51332816]
[1762790471423,0.20180306,105090.0,105080.0,0.323]
[1762790471597,0.19033117,105080.0,105070.0,0.29037311]
[1762790471970,0.19033117,105080.0,105070.0,0.09050636]
[1762790472142,0.19033117,105080.0,105060.0,0.19060464]
[1762790472143,0.22446799,105080.0,105060.0,0.19060464]
[1762790472367,0.19034929,105070.0,105060.0,0.19060464]
[1762790472564,0.19034929,105070.0,105060.0,0.51360464]
[1762790472766,0.19033117,105080.0,105060.0,0.51360464]
[1762790473014,0.01771403,105080.0,105070.0,0.28085565]
[1762790473227,0.19033117,105080.0,105070.0,0.28085565]
[1762790473399,0.21131871,105090.0,105070.0,0.28185565]
[1762790473601,0.22917796,105090.0,105080.0,0.19033117]
[1762790474194,0.22917796,105090.0,105070.0,0.78386451]
[1762790474389,0.19033117,105080.0,105070.0,0.001]
[1762790474562,0.20804656,105080.0,105070.0,0.001]
[1762790474765,0.22446656,105080.0,105070.0,0.001]
[1762790474975,0.20804656,105080.0,105070.0,0.19134929]
[1762790475256,0.01771539,105080.0,105070.0,0.19034929]
[1762790475477,0.01771539,105080.0,105070.0,0.78386451]
[1762790475683,0.00014386,105090.0,105080.0,0.19033117]
[1762790476117,0.00014386,105090.0,105080.0,0.69334003]
[1762790476965,0.00014386,105090.0,105080.0,0.69434003]
[1762790477488,0.00014386,105090.0,105080.0,0.71434003]
[1762790477892,0.00014386,105090.0,105080.0,0.69434003]
[1762790478121,0.00014386,105090.0,105080.0,0.69334003]
[1762790478726,0.00014386,105090.0,105080.0,0.69734003]
[1762790479507,0.00014386,105090.0,105080.0,1.04334003]
[1762790479761,0.00014386,105090.0,105080.0,1.06859352]
[1762790479762,3.86e-06,105090.0,105080.0,1.06859352]
[1762790479945,0.19024099,105130.0,105110.0,0.19976282]
[1762790479946,0.20173065,105130.0,105110.0,0.19976282]
[1762790480153,0.21961758,105130.0,105120.0,0.19025875]
[1762790480728,0.21961758,105130.0,105110.0,0.19976282]
[1762790481047,0.21961758,105130.0,105120.0,0.19025875]
[1762790481250,0.22061758,105130.0,105120.0,0.19025875]
[1762790481453,0.22161758,105130.0,105110.0,0.19976282]
[1762790481652,0.19025875,105120.0,105110.0,0.52276282]
[1762790481871,0.19025875,105120.0,105110.0,0.323]
[1762790482936,0.19027685,105110.0,105090.0,0.19978178]
[1762790483163,0.22037555,105110.0,105100.0,0.19029495]
[1762790483505,0.0177487,105110.0,105100.0,0.19029495]
[1762790483932,0.23696555,105110.0,105100.0,0.19029495]
[1762790484496,0.23696555,105110.0,105090.0,1.116297]
[1762790484695,0.23696555,105110.0,105090.0,0.61328814]
[1762790485104,0.0300987,105110.0,105100.0,0.19029495]
[1762790485302,0.22037555,105110.0,105090.0,1.119297]
[1762790485616,0.19029495,105100.0,105090.0,0.61328814]
[1762790485840,0.20262685,105110.0,105100.0,0.19029495]
[1762790486040,0.22038018,105110.0,105100.0,0.19229495]
[1762790486218,0.22038018,105110.0,105100.0,0.19029495]
[1762790486430,0.19029495,105100.0,105090.0,0.61328814]
[1762790486645,0.19029495,105100.0,105090.0,0.61428814]
[1762790486827,0.20804742,105100.0,105090.0,0.20078178]
[1762790487027,0.20804742,105100.0,105090.0,0.29128814]
[1762790487334,0.01775247,105100.0,105090.0,0.29128814]
[1762790487546,0.20262685,105110.0,105100.0,0.19029495]
[1762790487753,0.01775288,105110.0,105100.0,0.69330381]
[1762790488236,0.1902602,105120.0,105110.0,0.19027685]
[1762790488370,0.20800985,105120.0,105090.0,0.794297]
[1762790488572,0.20262685,105110.0,105090.0,0.29128814]
[1762790488771,0.2203765,105110.0,105100.0,0.19029495]
[1762790489009,0.20262685,105110.0,105100.0,0.19029495]
[1762790489182,0.19027685,105110.0,105090.0,0.29028814]
[1762790489398,0.22036451,105110.0,105100.0,0.19029495]
[1762790489732,0.01773766,105110.0,105100.0,0.19029495]
[1762790489931,0.22644103,105120.0,105110.0,0.19027685]
[1762790490492,0.23553678,105130.0,105110.0,0.19027685]
[1762790490702,0.28945666,105130.0,105120.0,0.19025875]
[1762790490898,0.19025875,105120.0,105110.0,0.19027685]
[1762790491290,0.19027685,105110.0,105100.0,1.02581855]
[1762790491490,0.19025875,105120.0,105100.0,0.52280969]
[1762790491968,0.19025875,105120.0,105110.0,0.19027685]
[1762790492174,0.20188346,105130.0,105110.0,0.78379207]
[1762790492359,0.19039346,105130.0,105110.0,0.78379207]
[1762790492589,0.19027685,105110.0,105100.0,0.19980969]
[1762790492771,0.19027685,105110.0,105090.0,0.29028814]
[1762790492939,0.19027685,105110.0,105090.0,0.793297]
[1762790493154,0.19027685,105110.0,105100.0,0.19029495]
[1762790493660,0.20262685,105110.0,105100.0,0.19029495]
[1762790493838,0.19027685,105110.0,105100.0,0.69330381]
[1762790494038,0.23101685,105110.0,105100.0,0.19029495]
[1762790494257,0.01659,105110.0,105100.0,0.19029495]
[1762790494488,0.19025875,105120.0,105100.0,0.19029495]
[1762790494689,0.19027685,105110.0,105100.0,0.19029495]
[1762790494905,0.19027685,105110.0,105100.0,0.19129495]
[1762790495258,0.19027685,105110.0,105100.0,0.19429495]
[1762790495874,0.21440875,105120.0,105110.0,0.19027685]
[1762790496064,0.19025875,105120.0,105110.0,0.33997685]
[1762790496518,0.19025875,105120.0,105110.0,0.1497]
[1762790496699,0.19025875,105120.0,105110.0,0.33997685]
[1762790497048,0.24843777,105130.0,105110.0,0.33997685]
[1762790497183,0.26619259,105130.0,105110.0,0.33997685]
[1762790497555,0.07594323,105130.0,105120.0,0.19025875]
[1762790497746,0.0001441,105130.0,105120.0,0.69326761]
[1762790498485,0.0011441,105130.0,105120.0,0.69326761]
[1762790499462,0.0011441,105130.0,105120.0,1.01626761]
[1762790499756,0.0001441,105130.0,105120.0,1.08730066]
[1762790500273,0.0001441,105130.0,105120.0,1.08830066]
[1762790500882,0.0001441,105130.0,105120.0,1.08730066]
[1762790501081,0.0001441,105130.0,105120.0,1.08930066]
[1762790501925,0.0001441,105130.0,105120.0,1.02126761]
[1762790504288,0.0001441,105130.0,105120.0,1.08930066]
[1762790504468,0.0001441,105130.0,105120.0,1.02126761]
[1762790504873,0.0001441,105130.0,105120.0,1.03882353]
[1762790505501,0.0001441,105130.0,105120.0,1.10685658]
[1762790505704,0.0001441,105130.0,105120.0,0.66795875]
[1762790505901,0.0290841,105130.0,105120.0,1.03882353]
[1762790506121,0.21932475,105130.0,105120.0,0.66795875]
[1762790506347,0.20273475,105130.0,105120.0,0.34495875]
[1762790506562,0.0290841,105130.0,105120.0,0.34495875]
[1762790506778,0.0124941,105130.0,105120.0,0.71582353]
[1762790506976,0.0001441,105130.0,105120.0,0.71582353]
[1762790507354,0.0001441,105130.0,105120.0,0.71382353]
[1762790507702,0.0001441,105130.0,105120.0,0.71482353]
[1762790507905,0.0001441,105130.0,105120.0,1.40768831]
[1762790508284,0.0001441,105130.0,105120.0,1.32302136]
[1762790508419,0.0001441,105130.0,105120.0,1.36103591]
[1762790508834,0.01275,105180.0,105170.0,0.19016829]
[1762790509032,0.01275,105180.0,105150.0,0.19020446]
[1762790509033,0.22111486,105180.0,105160.0,0.56103491]
[1762790509257,0.20251829,105170.0,105150.0,0.62932976]
[1762790509433,0.20251829,105170.0,105160.0,0.28069274]
[1762790509639,0.01235,105170.0,105160.0,0.28069274]
[1762790509836,0.23956301,105180.0,105170.0,0.19016829]
[1762790510041,0.20338073,105180.0,105170.0,0.19016829]
[1762790510265,0.23956301,105180.0,105170.0,0.19016829]
[1762790510669,0.19103073,105180.0,105170.0,0.56103307]
[1762790510881,0.19103073,105180.0,105160.0,0.28069274]
[1762790511048,0.19016829,105170.0,105160.0,0.65155752]
[1762790511879,0.19018638,105160.0,105150.0,0.52271468]
[1762790512057,0.24325829,105170.0,105150.0,0.89357946]
[1762790512258,0.19018638,105160.0,105140.0,0.72934724]
[1762790512458,0.19018638,105160.0,105140.0,0.66108672]
[1762790513015,0.19020446,105150.0,105140.0,0.66108672]
[1762790513250,0.21508638,105160.0,105140.0,0.66108672]
[1762790513428,0.19018638,105160.0,105140.0,0.66108672]
[1762790513848,0.19018638,105160.0,105150.0,0.19020446]
[1762790514592,0.27310898,105170.0,105160.0,0.19018638]
[1762790514791,0.22543824,105180.0,105160.0,0.56105116]
[1762790515076,0.19016829,105170.0,105160.0,0.56105116]
[1762790515206,0.22543824,105180.0,105160.0,0.56105116]
[1762790515405,0.21824182,105180.0,105160.0,0.56105116]
[1762790515605,0.19006829,105170.0,105160.0,0.56105116]
[1762790515991,0.19006829,105170.0,105160.0,0.19018638]
[1762790516181,0.22743824,105180.0,105160.0,0.19018638]
[1762790516382,0.19016829,105170.0,105160.0,0.19018638]
[1762790516912,0.19018638,105160.0,105150.0,0.19971468]
[1762790517147,0.01541,105160.0,105140.0,0.43992194]
[1762790517348,0.20219446,105150.0,105140.0,0.66108672]
[1762790517569,0.20217638,105160.0,105150.0,0.19020446]
[1762790517805,0.20217638,105160.0,105150.0,0.56106924]
[1762790518069,0.19018638,105160.0,105150.0,0.19020258]
[1762790518325,0.20559638,105160.0,105150.0,0.56106736]
[1762790518526,0.19018638,105160.0,105150.0,0.56106736]
[1762790518937,0.18518638,105160.0,105150.0,0.19220258]
[1762790519132,0.18518638,105160.0,105150.0,0.56306736]
[1762790519798,0.27174898,105170.0,105160.0,0.19018638]
[1762790520348,0.25375057,105170.0,105160.0,0.19018638]
[1762790520510,0.23834057,105170.0,105160.0,0.19018638]
[1762790520708,0.22443824,105180.0,105160.0,0.56105116]
[1762790520709,0.20053824,105180.0,105160.0,0.56105116]
[1762790521029,0.03618228,105170.0,105160.0,0.56105116]
[1762790521387,0.19103297,105180.0,105160.0,0.56105116]
[1762790521594,0.20215829,105170.0,105160.0,0.37086478]
[1762790521792,0.22636866,105160.0,105150.0,0.6724128]
[1762790521996,0.26567866,105160.0,105150.0,0.1497]
[1762790522411,0.22636866,105160.0,105150.0,0.33990446]
[1762790522616,0.26567866,105160.0,105150.0,0.1497]
[1762790523456,0.24177866,105160.0,105150.0,0.1497]
[1762790523661,0.24177866,105160.0,105150.0,0.33990446]
[1762790524840,0.24177866,105160.0,105150.0,0.1517]
[1762790525253,0.24177866,105160.0,105150.0,0.002]
[1762790525459,0.22636866,105160.0,105150.0,0.19220446]
[1762790525661,0.03618228,105160.0,105150.0,0.19220446]
[1762790525897,0.03618228,105160.0,105150.0,0.56306924]
[1762790526098,0.22636866,105160.0,105150.0,0.56306924]
[1762790526321,0.03618228,105160.0,105150.0,0.19220446]
[1762790526519,0.26567866,105160.0,105150.0,0.002]
[1762790526934,0.26567866,105160.0,105120.0,0.97707417]
[1762790526935,0.00951022,105150.0,105120.0,0.06826052]
[1762790527106,0.01199,105130.0,105120.0,0.62938405]
[1762790527306,0.03618228,105140.0,105130.0,0.19024065]
[1762790527518,0.03618228,105140.0,105130.0,0.65340179]
[1762790527723,0.22640484,105140.0,105130.0,0.65340179]
[1762790527925,0.03618228,105140.0,105130.0,0.65340179]
[1762790528340,0.0366625,105140.0,105130.0,0.65340179]
[1762790528646,0.24229506,105140.0,105120.0,0.62938405]
[1762790528848,0.24229506,105140.0,105120.0,0.63038405]
[1762790529054,0.24154065,105130.0,105120.0,0.001]
[1762790529249,0.27772293,105130.0,105120.0,0.001]
[1762790529657,0.03618228,105110.0,105100.0,0.63892943]
[1762790529861,0.23844913,105110.0,105100.0,0.06826052]
[1762790530041,0.25385913,105110.0,105100.0,0.06826052]
[1762790530243,0.25385913,105110.0,105090.0,0.29026901]
[1762790530244,0.25385913,105110.0,105090.0,0.72939431]
[1762790530909,0.22647723,105100.0,105090.0,1.05246037]
[1762790531132,0.26578723,105100.0,105090.0,0.34907994]
[1762790531316,0.26578723,105100.0,105090.0,0.67207994]
[1762790531708,0.26578723,105100.0,105090.0,0.51531306]
[1762790531709,0.05159228,105100.0,105090.0,0.51531306]
[1762790531910,0.03618228,105100.0,105090.0,1.04673472]
[1762790532116,0.23564268,105130.0,105120.0,0.19025875]
[1762790532117,0.03589,105130.0,105120.0,0.19025875]
[1762790532447,0.01199,105130.0,105120.0,0.19025875]
[1762790532660,0.06358228,105130.0,105120.0,0.19025875]
[1762790532861,0.01199,105140.0,105130.0,0.19024065]
[1762790533034,0.20221256,105140.0,105130.0,0.19024065]
[1762790533264,0.03618228,105130.0,105120.0,0.51325875]
[1762790533716,0.22642293,105130.0,105120.0,0.51325875]
[1762790533918,0.03618228,105130.0,105120.0,0.51325875]
[1762790534304,0.03618228,105130.0,105120.0,0.19025875]
[1762790534567,0.24183293,105130.0,105110.0,0.35853699]
[1762790534773,0.22644103,105120.0,105110.0,0.1588904]
[1762790534999,0.24185103,105120.0,105110.0,0.34916725]
[1762790535229,0.26575103,105120.0,105110.0,0.0001441]
[1762790536013,0.26575103,105120.0,105110.0,0.0011441]
[1762790537634,0.3113502,105120.0,105110.0,0.0011441]
[1762790537859,0.28675103,105120.0,105110.0,0.0001441]
[1762790538076,0.26675103,105120.0,105110.0,0.0001441]
[1762790538300,0.26775103,105120.0,105110.0,0.0001441]
[1762790541244,0.61075103,105120.0,105110.0,0.0001441]
[1762790541444,0.61075103,105120.0,105060.0,0.2588336]
[1762790541445,0.22651345,105080.0,105060.0,0.2588336]
[1762790541644,0.04817228,105070.0,105060.0,0.25897746]
[1762790541971,0.04817228,105070.0,105060.0,0.58197746]
[1762790542172,0.25407157,105070.0,105060.0,0.06862104]
[1762790542375,0.06372228,105070.0,105060.0,0.1907485]
[1762790542573,0.04817228,105070.0,105060.0,0.5137485]
[1762790543318,0.04817228,105070.0,105060.0,0.1907485]
[1762790543446,0.04817228,105070.0,105060.0,0.88847328]
[1762790543447,0.03618228,105070.0,105060.0,0.88847328]
[1762790543647,0.01128,105090.0,105070.0,0.190333]
[1762790543852,0.03446,105090.0,105070.0,0.28083936]
[1762790544051,0.01128,105090.0,105080.0,0.19033117]
[1762790544259,0.04746228,105090.0,105080.0,0.19033117]
[1762790544707,0.23777534,105090.0,105080.0,0.19033117]
[1762790544903,0.04746228,105090.0,105080.0,0.19033117]
[1762790545412,0.04946228,105090.0,105080.0,0.19033117]
[1762790547723,0.24177534,105090.0,105080.0,0.19033117]
[1762790547917,0.24177534,105090.0,105070.0,0.65170414]
[1762790547918,0.22114306,105090.0,105070.0,0.60383936]
[1762790548100,0.20588117,105080.0,105070.0,0.60383936]
[1762790548304,0.26524345,105080.0,105070.0,0.323]
[1762790548597,0.05173228,105080.0,105060.0,0.20026687]
[1762790548877,0.05173228,105080.0,105070.0,0.28085565]
[1762790549008,0.03618228,105080.0,105070.0,0.28278565]
[1762790549209,0.03718228,105080.0,105070.0,0.28278565]
[1762790549747,0.001,105080.0,105070.0,0.65365043]
[1762790549914,0.001,105080.0,105070.0,0.97858043]
[1762790550116,0.001,105080.0,105070.0,0.60578565]
[1762790551118,0.23977536,105090.0,105080.0,0.19033117]
[1762790551337,0.07264228,105090.0,105080.0,0.19033117]
[1762790551563,0.25332534,105090.0,105080.0,0.19033117]
[1762790551764,0.27650534,105090.0,105080.0,0.19033117]
[1762790551963,0.08619228,105090.0,105080.0,0.19033117]
[1762790552164,0.06301228,105090.0,105080.0,0.19033117]
[1762790552398,0.03618228,105090.0,105080.0,0.19226117]
[1762790552960,0.03818228,105090.0,105080.0,0.19226117]
[1762790553162,0.002,105090.0,105080.0,0.56312595]
[1762790553495,0.002,105090.0,105080.0,0.88805595]
[1762790553831,0.002,105090.0,105080.0,0.51526117]
[1762790554082,0.21914306,105090.0,105080.0,0.19033117]
[1762790554502,0.22651345,105080.0,105070.0,0.28085565]
[1762790554706,0.26524345,105080.0,105070.0,0.28085565]
[1762790554914,0.26524345,105080.0,105070.0,0.09050636]
[1762790555121,0.19034929,105070.0,105060.0,0.52326634]
[1762790555302,0.26526157,105070.0,105060.0,0.1907485]
[1762790555726,0.26526157,105070.0,105060.0,0.0003811]
[1762790555878,0.24208157,105070.0,105060.0,0.0003811]
[1762790556083,0.26526157,105070.0,105060.0,0.0003811]
[1762790556448,0.07491228,105070.0,105060.0,0.0003811]
[1762790556654,0.05173228,105070.0,105060.0,0.1927485]
[1762790556886,0.03618228,105070.0,105060.0,0.56554328]
[1762790557108,0.03618228,105080.0,105070.0,0.19033717]
[1762790557539,0.26524345,105080.0,105070.0,0.19033717]
[1762790557776,0.05173228,105080.0,105070.0,0.19033717]
[1762790557980,0.24206345,105080.0,105070.0,0.19033717]
[1762790558192,0.05173228,105080.0,105070.0,0.19033717]
[1762790558411,0.03618228,105080.0,105070.0,0.65363831]
[1762790558619,0.04746228,105090.0,105080.0,0.19033117]
[1762790558821,0.27650534,105090.0,105060.0,0.64130159]
[1762790559039,0.24208157,105070.0,105060.0,0.0003811]
[1762790559462,0.26526157,105070.0,105060.0,0.0003811]
[1762790559674,0.26526157,105070.0,105060.0,0.1907485]
[1762790559878,0.26526157,105070.0,105060.0,0.0003811]
[1762790560146,0.31082084,105070.0,105060.0,0.0003811]
[1762790560345,0.26526157,105070.0,105060.0,0.0023811]
[1762790561114,0.28296523,105070.0,105060.0,0.0023811]
[1762790561558,0.26526157,105070.0,105060.0,0.0023811]
[1762790561772,0.03618228,105070.0,105060.0,0.1946785]
[1762790562194,0.03618228,105070.0,105060.0,0.1926785]
[1762790562407,0.19033117,105080.0,105070.0,0.19034929]
[1762790562613,0.05173228,105080.0,105070.0,0.19034929]
[1762790562842,0.23428871,105090.0,105080.0,0.19033117]
[1762790563037,0.30372673,105090.0,105080.0,0.19033117]
[1762790563407,0.01770574,105090.0,105080.0,0.19226117]
[1762790563588,0.20228563,105100.0,105090.0,0.19031306]
[1762790563998,0.06588757,105100.0,105090.0,0.19031306]
[1762790564232,0.01771529,105100.0,105090.0,0.19224306]
[1762790564442,0.20153905,105120.0,105100.0,0.19027869]
[1762790564648,0.03618228,105110.0,105100.0,0.19220869]
[1762790565083,0.23773913,105110.0,105090.0,0.29226507]
[1762790565320,0.20155685,105110.0,105100.0,0.19029495]
[1762790565541,0.04746228,105110.0,105100.0,0.19029495]
[1762790565765,0.23773913,105110.0,105100.0,0.19029495]
[1762790565988,0.23773913,105110.0,105100.0,0.19229495]
[1762790566204,0.04746228,105110.0,105100.0,0.19229495]
[1762790566427,0.03618228,105110.0,105100.0,0.19422495]
[1762790566916,0.21179238,105130.0,105110.0,0.19027685]
[1762790567134,0.22967126,105130.0,105110.0,0.19220685]
[1762790567350,0.22967126,105130.0,105110.0,0.28271321]
[1762790568236,0.26585354,105130.0,105120.0,0.19025875]
[1762790568403,0.26585354,105130.0,105110.0,0.28464321]
[1762790568622,0.26585354,105130.0,105120.0,0.19025875]
[1762790568837,0.26685354,105130.0,105120.0,0.19025875]
[1762790569106,0.26585354,105130.0,105120.0,0.19025875]
[1762790569321,0.26685354,105130.0,105120.0,0.19025875]
[1762790569783,0.05506116,105130.0,105120.0,0.19218875]
[1762790570015,0.0373263,105130.0,105120.0,0.19218875]
[1762790570230,0.00114402,105130.0,105120.0,0.19218875]
[1762790570464,0.00114402,105130.0,105120.0,0.19411875]
[1762790570899,0.19138467,105130.0,105120.0,0.19218875]
[1762790571104,0.00114402,105130.0,105120.0,0.19218875]
[1762790571306,0.00114402,105130.0,105120.0,0.19025875]
[1762790571480,0.00114402,105130.0,105120.0,0.19218875]
[1762790571689,0.00014402,105130.0,105120.0,0.19218875]
[1762790571889,0.00014402,105130.0,105120.0,0.19411875]
[1762790572115,0.00014402,105130.0,105120.0,0.19511875]
[1762790573393,0.00014402,105130.0,105120.0,0.19611875]
[1762790574483,0.00014402,105130.0,105120.0,0.19418875]
[1762790575126,0.00014402,105130.0,105120.0,0.19611875]
[1762790575551,0.01262402,105130.0,105120.0,0.19418875]
[1762790575970,0.00014402,105130.0,105120.0,0.19418875]
[1762790576634,0.27932695,105130.0,105120.0,0.002]
[1762790576843,0.32990022,105130.0,105120.0,0.002]
[1762790577663,0.32990022,105130.0,105120.0,0.001]
[1762790578075,0.33190022,105130.0,105120.0,0.001]
[1762790579285,0.22645913,105110.0,105100.0,0.19980811]
[1762790579493,0.19029495,105100.0,105090.0,0.61333507]
[1762790579700,0.25478913,105110.0,105090.0,0.61333507]
[1762790579917,0.23893913,105110.0,105100.0,0.19029495]
[1762790580330,0.03618228,105110.0,105100.0,0.19222495]
[1762790580740,0.03618228,105110.0,105100.0,0.19322495]
[1762790580940,0.03618228,105110.0,105100.0,0.19515495]
[1762790581172,0.25478913,105110.0,105100.0,0.19129495]
[1762790581374,0.06451228,105110.0,105100.0,0.19129495]
[1762790581993,0.25478913,105110.0,105100.0,0.19129495]
[1762790582398,0.03618228,105110.0,105100.0,0.19322495]
[1762790582536,0.03618228,105110.0,105100.0,0.19422495]
[1762790582947,0.2368067,105130.0,105120.0,0.19025875]
[1762790583191,0.2368067,105130.0,105110.0,0.00193]
[1762790583192,0.03618228,105120.0,105110.0,0.00193]
[1762790583421,0.19027685,105110.0,105100.0,0.002]
[1762790583766,0.27921913,105110.0,105100.0,0.002]
[1762790583983,0.27921913,105110.0,105100.0,0.19129495]
[1762790584224,0.2789598,105110.0,105100.0,0.19029495]
[1762790584652,0.2789598,105110.0,105090.0,0.28081746]
[1762790585506,0.2789598,105110.0,105100.0,0.19029495]
[1762790585720,0.19029495,105100.0,105090.0,0.28081746]
[1762790585922,0.2789598,105110.0,105100.0,0.001]
[1762790586121,0.23893913,105110.0,105100.0,0.001]
[1762790586250,0.25478913,105110.0,105100.0,0.19029495]
[1762790586454,0.03618228,105110.0,105100.0,0.69466283]
[1762790586657,0.03618228,105110.0,105100.0,0.19415495]
[1762790586857,0.03618228,105110.0,105100.0,0.51715495]
[1762790587105,0.03618228,105110.0,105100.0,0.51522495]
[1762790587303,0.06451228,105110.0,105100.0,0.51429495]
[1762790587478,0.23893913,105110.0,105100.0,0.51722495]
[1762790587680,0.23893913,105110.0,105100.0,0.00393]
[1762790588131,0.23893913,105110.0,105100.0,0.19422495]
[1762790588341,0.25478913,105110.0,105100.0,0.002]
[1762790588487,0.27921913,105110.0,105100.0,0.19229495]
[1762790588840,0.27921913,105110.0,105100.0,0.002]
[1762790591465,0.22645913,105110.0,105100.0,0.19422495]
[1762790591670,0.03618228,105110.0,105100.0,0.19422495]
[1762790592312,0.03618228,105110.0,105100.0,0.19615495]
[1762790592725,0.03618228,105110.0,105100.0,0.19422495]
[1762790593134,0.03618228,105110.0,105100.0,0.26246489]
[1762790593608,0.22645913,105110.0,105100.0,0.26246489]
[1762790593779,0.03618228,105110.0,105100.0,0.26246489]
[1762790593985,0.2368067,105130.0,105110.0,0.19026365]
[1762790594243,0.22644103,105120.0,105110.0,0.19219365]
[1762790594486,0.02213605,105130.0,105120.0,0.19025875]
[1762790596500,0.26884695,105130.0,105120.0,0.06923994]
[1762790597002,0.26884695,105130.0,105120.0,0.001]
[1762790597241,0.0383263,105130.0,105120.0,0.19511875]
[1762790597562,0.00214402,105130.0,105120.0,0.51618875]
[1762790597769,0.00214402,105130.0,105120.0,0.58442869]
[1762790597998,0.19238467,105130.0,105120.0,0.58442869]
[1762790598198,0.19238467,105130.0,105120.0,0.26142869]
[1762790598794,0.20823467,105130.0,105120.0,0.25949869]
[1762790599012,0.20623467,105130.0,105120.0,0.25949869]
[1762790599192,0.26684695,105130.0,105120.0,0.001]
[1762790600432,0.26684695,105130.0,105120.0,0.002]
[1762790601958,0.2846294,105130.0,105120.0,0.002]
[1762790602167,0.2601994,105130.0,105120.0,0.21128462]
[1762790602380,0.0363263,105130.0,105120.0,0.19318875]
[1762790602593,0.24165695,105130.0,105120.0,0.001]
[1762790602807,0.26732695,105130.0,105120.0,0.19125875]
[1762790603019,0.24265695,105130.0,105120.0,0.19125875]
[1762790603229,0.24265695,105130.0,105120.0,0.25949869]
[1762790603649,0.0514163,105130.0,105120.0,0.25949869]
[1762790603862,0.0363263,105130.0,105120.0,0.26142869]
[1762790604063,0.00014402,105130.0,105120.0,0.26042869]
[1762790604270,0.20647467,105130.0,105120.0,0.06823994]
[1762790604476,0.20647467,105130.0,105120.0,0.25849869]
[1762790604620,0.01623402,105130.0,105120.0,0.25849869]
[1762790604821,0.01523402,105130.0,105120.0,0.25849869]
[1762790605006,0.01523402,105130.0,105120.0,0.25949869]
[1762790605210,0.20547467,105130.0,105120.0,0.25949869]
[1762790605642,0.20547467,105130.0,105120.0,0.25849869]
[1762790605842,0.20547467,105130.0,105120.0,0.26049869]
[1762790606221,0.20547467,105130.0,105120.0,0.26149869]
[1762790606437,0.01523402,105130.0,105120.0,0.26149869]
[1762790606624,0.00014402,105130.0,105120.0,0.26342869]
[1762790607488,0.01523402,105130.0,105120.0,0.26149869]
[1762790607698,0.26632695,105130.0,105120.0,0.003]
[1762790607917,0.0514163,105130.0,105120.0,0.19325875]
[1762790608131,0.0363263,105130.0,105120.0,0.26342869]
[1762790608811,0.00014402,105130.0,105120.0,0.76579657]
[1762790609265,0.00014402,105130.0,105120.0,0.76679657]
[1762790609494,0.00014402,105130.0,105120.0,1.23529657]
[1762790610114,0.00014402,105130.0,105120.0,1.16705663]
[1762790610339,1e-08,105130.0,105120.0,1.38862805]
[1762790610545,0.20144865,105170.0,105160.0,0.19018638]
[1762790610802,0.21485638,105160.0,105140.0,0.34390883]
[1762790611009,0.27849674,105150.0,105140.0,0.06830826]
[1762790611214,0.27849674,105150.0,105130.0,0.49455404]
[1762790611414,0.19022256,105140.0,105130.0,0.34905404]
[1762790611620,0.20531256,105140.0,105130.0,0.34905527]
[1762790612026,0.20531256,105140.0,105130.0,0.15881462]
[1762790612239,0.20531256,105140.0,105130.0,0.09050636]
[1762790612435,0.20531256,105140.0,105130.0,0.28074701]
[1762790612634,0.20737189,105140.0,105130.0,0.09050636]
[1762790612840,0.00205933,105140.0,105130.0,0.28367701]
[1762790613040,0.00205933,105140.0,105130.0,0.85642315]
[1762790613677,0.19228189,105140.0,105130.0,0.85642315]
[1762790613874,0.00205933,105140.0,105130.0,0.85642315]
[1762790614078,0.19228189,105140.0,105130.0,0.35398527]
[1762790614272,0.19228189,105140.0,105130.0,0.35198527]
[1762790614729,0.00205933,105140.0,105130.0,0.35398527]
[1762790615130,0.19228189,105140.0,105130.0,0.35398527]
[1762790615330,0.00205933,105140.0,105130.0,0.35398527]
[1762790615567,0.00205933,105140.0,105130.0,0.85835315]
[1762790616137,0.00205933,105140.0,105130.0,1.00385315]
[1762790616338,0.00205933,105140.0,105130.0,1.32685315]
[1762790616718,0.00205933,105140.0,105130.0,1.27854489]
[1762790616941,0.00205933,105140.0,105130.0,1.34393022]
[1762790617255,0.00205933,105140.0,105130.0,1.34093022]
[1762790617663,0.00205933,105140.0,105130.0,1.34493022]
[1762790617875,0.00205933,105140.0,105130.0,1.34793022]
[1762790618081,0.00205933,105140.0,105130.0,1.37793021]
[1762790618293,0.00205933,105140.0,105130.0,1.26254489]
[1762790618699,0.00205933,105140.0,105130.0,1.27254489]
[1762790619322,0.00048022,105170.0,105160.0,0.51318638]
[1762790619543,0.00048022,105170.0,105160.0,1.01948426]
[1762790619756,0.00119091,105170.0,105160.0,1.01948426]
[1762790619963,0.00119091,105170.0,105160.0,1.08768143]
[1762790620372,0.00119091,105170.0,105160.0,1.01948426]
[1762790620831,0.00119091,105170.0,105160.0,0.51511638]
[1762790621030,0.1913592,105170.0,105160.0,0.00193]